fUSD/lending_fUSD_20240224
["ID","MTS","AMOUNT","RATE_DAILY","PERIOD"]
[315040318,1708756248958,-510.94956544,0.00027397,2]
[315040319,1708756248967,-500.0,0.00027397,2]
[315040320,1708756248976,-500.0,0.00027397,2]
[315040321,1708756248986,-500.0,0.00027397,2]
[315040322,1708756248995,-500.0,0.00027397,2]
[315040323,1708756249005,-500.0,0.00027397,2]
[315040324,1708756249016,-500.0,0.00027397,2]
[315040325,1708756249026,-500.0,0.00027397,2]
[315040326,1708756249035,-500.0,0.00027397,2]
[315040327,1708756249045,-500.0,0.00027397,2]
[315040328,1708756249054,-500.0,0.00027397,2]
[315040329,1708756249064,-511.52907049,0.00027397,2]
[315040330,1708756249074,-500.0,0.00027397,2]
[315040331,1708756249084,-500.0,0.00027397,2]
[315040332,1708756249093,-222.70840098,0.00027397,2]
[315040333,1708756249102,-500.0,0.00027397,2]
[315040334,1708756249111,-515.55613672,0.00027397,2]
[315040335,1708756249120,-50.3633355,0.00027397,2]
[315040336,1708756249211,-449.6366645,0.00027397,2]
[315040337,1708756249220,-508.13123224,0.00027397,2]
[315040338,1708756249230,-500.0,0.00027397,2]
[315040339,1708756249240,-505.95742794,0.00027397,2]
[315040340,1708756249249,-480.34439637,0.00027397,2]
[315040341,1708756249262,-29.1234524,0.00027397,2]
[315040342,1708756249271,-488.63934385,0.00027397,2]
[315040343,1708756249282,-514.28203595,0.00027397,2]
[315040344,1708756249292,-500.0,0.00027397,2]
[315040345,1708756249302,-500.0,0.00027397,2]
[315040346,1708756249311,-500.0,0.00027397,2]
[315040347,1708756249321,-511.59752519,0.00027397,2]
[315040348,1708756249331,-500.0,0.00027397,2]
[315040349,1708756249340,-500.0,0.00027397,2]
[315040350,1708756249349,-512.5127466,0.00027397,2]
[315040351,1708756249360,-513.36988479,0.00027397,2]
[315040352,1708756249369,-15.2282817,0.00027397,2]
[315040353,1708756249381,-484.7717183,0.00027397,2]
[315040354,1708756249390,-500.0,0.00027397,2]
[315040355,1708756249399,-500.0,0.00027397,2]
[315040356,1708756249408,-513.44504925,0.00027397,2]
[315040357,1708756249417,-528.25497536,0.00027397,2]
[315040358,1708756249426,-500.0,0.00027397,30]
[315040359,1708756249435,-500.0,0.00027397,2]
[315040360,1708756249444,-512.00469438,0.00027397,2]
[315040361,1708756249453,-52.35084627,0.00027397,2]
[315040362,1708756249464,-485.74348067,0.00027397,2]
[315040363,1708756249473,-500.0,0.00027397,2]
[315040364,1708756249482,-500.0,0.00027397,2]
[315040365,1708756249491,-506.72411314,0.00027397,2]
[315040366,1708756249500,-500.0,0.00027397,2]
[315040367,1708756249509,-384.38502972,0.00027397,2]
[315040368,1708756249537,-120.61823147,0.00027397,2]
[315040369,1708756249546,-504.99763722,0.00027397,2]
[315040370,1708756249554,-124.56093759,0.00027397,2]
[315040371,1708756249624,-381.134093,0.00027397,2]
[315040372,1708756249633,-500.0,0.00027397,2]
[315040373,1708756249642,-447.10109296,0.00027397,2]
[315040374,1708756250025,-4247.96443073,0.00027396,2]
[315040375,1708756250035,-162.5392602,0.00027396,2]
[315040376,1708756250045,-72.00422405,0.00027397,2]
[315040377,1708756250055,-508.02563757,0.00027397,2]
[315040378,1708756250064,-500.0,0.00027397,2]
[315040379,1708756250074,-250.26699067,0.00027397,2]
[315040380,1708756250083,-500.0,0.00027397,2]
[315040381,1708756250093,-512.74037311,0.00027397,2]
[315040382,1708756250103,-500.0,0.00027397,2]
[315040383,1708756250113,-500.0,0.00027397,2]
[315040384,1708756250122,-510.03163035,0.00027397,2]
[315040385,1708756250131,-500.0,0.00027397,2]
[315040386,1708756250141,-500.0,0.00027397,2]
[315040387,1708756250150,-500.0,0.00027397,2]
[315040388,1708756250160,-500.0,0.00027397,2]
[315040389,1708756250169,-514.15968188,0.00027397,2]
[315040390,1708756250178,-500.0,0.00027397,2]
[315040391,1708756250188,-500.0,0.00027397,2]
[315040392,1708756250197,-500.0,0.00027397,2]
[315040393,1708756250206,-506.62228537,0.00027397,2]
[315040394,1708756250216,-515.97029566,0.00027397,2]
[315040395,1708756250225,-500.0,0.00027397,2]
[315040396,1708756250234,-513.19371125,0.00027397,2]
[315040397,1708756250243,-428.96396311,0.00027397,2]
[315040398,1708756250264,-71.03603689,0.00027397,2]
[315040399,1708756250275,-500.0,0.00027397,2]
[315040400,1708756250285,-509.81822202,0.00027397,2]
[315040401,1708756250295,-500.0,0.00027397,2]
[315040402,1708756250304,-500.0,0.00027397,2]
[315040403,1708756250314,-499.79411638,0.00027397,2]
[315040404,1708756250324,-509.6479476,0.00027397,2]
[315040405,1708756250333,-580.54461794,0.00027397,2]
[315040406,1708756250343,-500.0,0.00027397,2]
[315040407,1708756250352,-516.24537579,0.00027397,2]
[315040408,1708756250362,-500.0,0.00027397,2]
[315040409,1708756250372,-500.0,0.00027397,2]
[315040410,1708756250383,-524.50924113,0.00027397,2]
[315040411,1708756250392,-507.15732503,0.00027397,2]
[315040412,1708756250402,-500.0,0.00027397,2]
[315040413,1708756250411,-500.0,0.00027397,2]
[315040414,1708756250420,-538.85303642,0.00027397,2]
[315040415,1708756250430,-516.5994335,0.00027397,2]
[315040416,1708756250439,-560.31,0.00027397,2]
[315040417,1708756250448,-500.0,0.00027397,2]
[315040418,1708756250458,-358.7332473,0.00027397,2]
[315040419,1708756250522,-141.2667527,0.00027397,2]
[315040420,1708756250532,-500.0,0.00027397,2]
[315040421,1708756250542,-500.0,0.00027397,2]
[315040422,1708756250551,-500.0,0.00027397,2]
[315040423,1708756250560,-500.0,0.00027397,2]
[315040424,1708756250570,-506.98600243,0.00027397,2]
[315040425,1708756250579,-500.0,0.00027397,2]
[315040426,1708756250588,-500.0,0.00027397,2]
[315040427,1708756250597,-500.0,0.00027397,2]
[315040428,1708756250607,-500.0,0.00027397,2]
[315040429,1708756250616,-500.0,0.00027397,2]
[315040430,1708756250625,-1000.0,0.00027397,7]
[315040431,1708756250635,-500.0,0.00027397,2]
[315040432,1708756250763,-500.0,0.00027397,2]
[315040433,1708756250773,-383.47732021,0.00027397,2]
[315040434,1708756250915,-116.52267979,0.00027397,2]
[315040435,1708756250925,-500.0,0.00027397,2]
[315040436,1708756250935,-500.0,0.00027397,2]
[315040437,1708756250944,-500.0,0.00027397,2]
[315040438,1708756250954,-446.00332919,0.00027397,2]
[315040439,1708756251242,-65.36788268,0.00027397,2]
[315040440,1708756251252,-289.862574,0.00027397,2]
[315040441,1708756251261,-507.50556309,0.00027397,2]
[315040442,1708756251275,-520.80162912,0.00027397,2]
[315040443,1708756251285,-500.0,0.00027397,2]
[315040444,1708756251295,-517.24028231,0.00027397,2]
[315040445,1708756251305,-514.85030546,0.00027397,2]
[315040446,1708756251314,-500.0,0.00027397,2]
[315040447,1708756251323,-500.0,0.00027397,2]
[315040448,1708756251333,-410.10062469,0.00027397,2]
[315040449,1708756251348,-89.89937531,0.00027397,2]
[315040450,1708756251357,-500.0,0.00027397,2]
[315040451,1708756251368,-522.25733841,0.00027397,2]
[315040452,1708756251378,-500.0,0.00027397,2]
[315040453,1708756251388,-514.88346277,0.00027397,2]
[315040454,1708756251398,-500.0,0.00027397,2]
[315040455,1708756251409,-506.80352679,0.00027397,2]
[315040456,1708756251419,-500.0,0.00027397,2]
[315040457,1708756251430,-500.0,0.00027397,2]
[315040458,1708756251440,-505.49099524,0.00027397,2]
[315040459,1708756251450,-500.0,0.00027397,2]
[315040460,1708756251459,-500.0,0.00027397,2]
[315040461,1708756251469,-508.81666816,0.00027397,2]
[315040462,1708756251479,-500.0,0.00027397,2]
[315040463,1708756251490,-500.0,0.00027397,2]
[315040464,1708756251500,-524.44475749,0.00027397,2]
[315040465,1708756251511,-500.0,0.00027397,2]
[315040466,1708756251526,-500.0,0.00027397,2]
[315040467,1708756251537,-500.0,0.00027397,2]
[315040468,1708756251548,-500.0,0.00027397,2]
[315040469,1708756251558,-500.0,0.00027397,2]
[315040470,1708756251568,-500.0,0.00027397,2]
[315040471,1708756251578,-501.20378143,0.00027397,2]
[315040472,1708756251588,-500.0,0.00027397,2]
[315040473,1708756251598,-515.27184352,0.00027397,2]
[315040474,1708756251607,-500.0,0.00027397,2]
[315040475,1708756251617,-500.0,0.00027397,2]
[315040476,1708756251626,-542.11624973,0.00027397,2]
[315040477,1708756251636,-500.0,0.00027397,2]
[315040478,1708756251645,-556.81191348,0.00027397,2]
[315040479,1708756251654,-500.0,0.00027397,2]
[315040480,1708756251663,-500.0,0.00027397,2]
[315040481,1708756251672,-521.09152045,0.00027397,2]
[315040482,1708756251681,-257.54591861,0.00027397,2]
[315040483,1708756251691,-577.56557797,0.00027397,2]
[315040484,1708756251700,-4785.06,0.00027397,2]
[315040485,1708756251709,-295.69248921,0.00027397,2]
[315040486,1708756251718,-507.83263371,0.00027397,2]
[315040487,1708756251727,-500.0,0.00027397,2]
[315040488,1708756251736,-170.8383833,0.00027397,2]
[315040489,1708756251778,890.73022591,0.000224,2]
[315040490,1708756267822,890.73022591,0.000224,2]
[315040491,1708756282121,890.73022591,0.000224,2]
[315040492,1708756297824,890.73022591,0.000224,2]
[315040493,1708756317823,890.73022591,0.000224,2]
[315040494,1708756324126,5488.12,0.0002901,120]
[315040495,1708756335824,890.73022591,0.000224,2]
[315040496,1708756390334,890.73022591,0.000224,2]
[315040497,1708756408342,496.80546461,0.000224,2]
[315040507,1708757431640,-422.57841615,0.00023218,2]
[315040508,1708757431650,-204.48263457,0.00023218,2]
[315040509,1708757431660,-848.15,0.00023219,2]
[315040510,1708757431672,-190.42395577,0.00024671,2]
[315040511,1708757431682,-1839.4,0.00024674,2]
[315040512,1708757431692,-1793.1,0.00024771,2]
[315040513,1708757431701,-190.42395565,0.00024809,2]
[315040514,1708757431711,-207.0,0.000249,2]
[315040515,1708757431721,-1653.88000882,0.00024926,2]
[315040516,1708757431737,-128.96999118,0.00024926,2]
[315040517,1708757431747,-190.42395565,0.00024947,2]
[315040518,1708757431758,-250.0,0.00025067,2]
[315040519,1708757431767,-300.0,0.00025085,2]
[315040520,1708757431776,-150.0,0.00025085,2]
[315040521,1708757431785,-150.0,0.00025085,2]
[315040522,1708757431794,-499.99,0.00025085,2]
[315040523,1708757431803,-150.99,0.00025085,2]
[315040524,1708757431813,-190.42395565,0.00025086,2]
[315040525,1708757431822,-441.92,0.00025112,2]
[315040526,1708757431832,-895.72,0.00025117,2]
[315040527,1708757431841,-1255.66,0.00025117,2]
[315040528,1708757431851,-564.08,0.0002512,2]
[315040529,1708757431862,-1838.92,0.00025164,2]
[315040530,1708757431871,-190.42395565,0.00025224,2]
[315040531,1708757431881,-5632.76607181,0.00025258,2]
[315040532,1708757431929,-1360.1866726,0.00025258,2]
[315040533,1708757431956,-3210.51725559,0.00025258,2]
[315040534,1708757431965,-162.77,0.00025287,2]
[315040535,1708757431974,-157.67,0.00025354,2]
[315040536,1708757431984,-190.42395565,0.00025362,2]
[315040537,1708757431994,-558.08,0.00025397,2]
[315040538,1708757432003,-250.0,0.0002541,2]
[315040540,1708757432012,-161.51,0.0002541,2]
[315040542,1708757432021,-848.15,0.00025483,2]
[315040544,1708757432031,-190.42395565,0.000255,2]
[315040546,1708757432040,-150.0,0.00025557,2]
[315040547,1708757432049,-161.51,0.00025557,2]
[315040549,1708757432058,-190.42395565,0.00025638,2]
[315040551,1708757432067,-161.51,0.00025704,2]
[315040553,1708757432076,-190.42395565,0.00025777,2]
[315040555,1708757432085,-161.51,0.00025851,2]
[315040556,1708757432094,-164.35556735,0.00025882,2]
[315040558,1708757432103,-190.42395565,0.00025915,2]
[315040559,1708757432112,-165.9,0.00025943,2]
[315040560,1708757432122,-3671.74,0.00025983,2]
[315040561,1708757432131,-161.51,0.00025998,2]
[315040562,1708757432140,-190.42395565,0.00026053,2]
[315040563,1708757432149,-150.0,0.00026079,2]
[315040564,1708757432158,-150.0,0.00026105,2]
[315040565,1708757432167,-1528.0,0.00026126,2]
[315040566,1708757432176,-161.05,0.0002613,2]
[315040567,1708757432185,-161.51,0.00026146,2]
[315040568,1708757432195,-190.42395565,0.00026191,2]
[315040569,1708757432204,-177.78,0.00026198,2]
[315040570,1708757432213,-161.51,0.00026293,2]
[315040571,1708757432222,-190.42395565,0.0002633,2]
[315040572,1708757432231,-161.05,0.00026348,2]
[315040573,1708757432241,-215.0,0.00026371,2]
[315040574,1708757432250,-250.0,0.00026396,2]
[315040575,1708757432259,-376.62096199,0.00026397,2]
[315040576,1708757432269,-507.22281997,0.00026397,2]
[315040577,1708757432280,-161.51,0.0002644,2]
[315040578,1708757432291,-190.42395565,0.00026468,2]
[315040579,1708757432300,-150.0,0.00026468,2]
[315040580,1708757432309,-161.05,0.00026566,2]
[315040581,1708757432318,-207.0,0.00026571,4]
[315040582,1708757432327,-161.51,0.00026587,2]
[315040583,1708757432337,-190.42395565,0.00026606,2]
[315040584,1708757432346,-150.0,0.00026653,2]
[315040585,1708757432356,-250.0,0.0002667,2]
[315040586,1708757432366,-357.0,0.00026671,2]
[315040587,1708757432376,-161.51,0.00026734,2]
[315040588,1708757432385,-190.42395565,0.00026744,2]
[315040589,1708757432395,-177.78,0.00026746,2]
[315040590,1708757432404,-161.05,0.00026784,2]
[315040591,1708757432414,-190.42395565,0.00026882,2]
[315040592,1708757432422,-530.9227,0.00026898,2]
[315040593,1708757432432,-2500.0,0.00026898,2]
[315040594,1708757432441,-253.54161317,0.00026944,2]
[315040595,1708757432450,-1062.27379445,0.00026969,2]
[315040596,1708757432459,-1203.3197196,0.00026992,2]
[315040597,1708757432468,-1212.32361109,0.00026998,2]
[315040598,1708757432477,-1212.3236111,0.00026998,2]
[315040599,1708757432486,-13542.8107,0.00026998,2]
[315040600,1708757432495,-1586.5625,0.00026998,2]
[315040601,1708757432504,-2836.1709,0.00026998,2]
[315040602,1708757432513,-1000.0,0.00026998,2]
[315040603,1708757432522,-104275.77861011,0.00026998,2]
[315040604,1708757432554,-7492.94838192,0.00026998,2]
[315040614,1708757437629,-159.5,0.00025061,2]
[315040615,1708757437640,-159.5,0.00026314,2]
[315040616,1708757437649,-219.0,0.00026671,2]
[315040617,1708757437660,-944.97163027,0.00026998,2]
[315040618,1708757437672,-630.775,0.00026998,2]
[315040619,1708757437695,-382.17917985,0.00026998,2]
[315040620,1708757437708,-27275.10583332,0.00026998,2]
[315040621,1708757437809,-279.39887565,0.00026998,2]
[315040622,1708757437821,-342.79972744,0.00026998,2]
[315040623,1708757437832,-33892.08312226,0.00026998,2]
[315040624,1708757437843,-6128.83002862,0.00026998,2]
[315040625,1708757437873,-785.92464769,0.00026998,2]
[315040626,1708757437884,-669.42707453,0.00026998,2]
[315040629,1708757440920,-455.89466373,0.00026998,2]
[315040630,1708757440932,-638.01257804,0.00026998,2]
[315040631,1708757440985,-1045.79908187,0.00026998,2]
[315040632,1708757440996,-4019.09127962,0.00026998,2]
[315040633,1708757441043,-3682.81692732,0.00026998,2]
[315040634,1708757441161,-676.14249064,0.00026998,2]
[315040639,1708757442629,-10920.45596,0.00026998,2]
[315040641,1708757442685,-1287.17745519,0.00026998,2]
[315040642,1708757442698,-11989.36939581,0.00026998,2]
[315040643,1708757442801,-284.83040661,0.00026998,2]
[315040647,1708757445819,-1433.49229833,0.00026998,2]
[315040648,1708757445831,-102103.93515118,0.00026998,2]
[315040649,1708757445840,-281.5307,0.00026998,2]
[315040650,1708757445849,-2455.999,0.00026998,2]
[315040651,1708757445859,-150.0,0.00027,2]
[315040652,1708757445868,-150.0,0.00027,2]
[315040653,1708757445878,-161.05,0.00027001,2]
[315040654,1708757445887,-190.42395565,0.00027021,2]
[315040655,1708757445896,-1741.17077178,0.00027097,2]
[315040656,1708757445905,-21446.40328632,0.000271,2]
[315040657,1708757445914,-200.0,0.00027129,2]
[315040658,1708757445924,-800.0,0.00027129,2]
[315040659,1708757445933,-200.0,0.00027129,2]
[315040660,1708757445942,-200.0,0.00027129,2]
[315040661,1708757445952,-176.9,0.00027139,2]
[315040662,1708757445961,-1203.31971961,0.00027149,2]
[315040663,1708757445970,-190.42395565,0.00027159,2]
[315040664,1708757445979,-675.085,0.00027192,2]
[315040665,1708757445989,-161.8305,0.00027192,2]
[315040666,1708757445998,-1000.0,0.00027193,2]
[315040667,1708757446007,-5000.0,0.00027197,2]
[315040668,1708757446016,-547.41780956,0.00027197,2]
[315040669,1708757446026,-163.022415,0.00027198,2]
[315040670,1708757446035,-163.022415,0.00027198,2]
[315040671,1708757446044,-163.022415,0.00027198,2]
[315040672,1708757446054,-163.022415,0.00027198,2]
[315040673,1708757446063,-163.022415,0.00027198,2]
[315040674,1708757446073,-163.022415,0.00027198,2]
[315040675,1708757446083,-163.022415,0.00027198,2]
[315040676,1708757446093,-163.022415,0.00027198,2]
[315040677,1708757446114,-163.022415,0.00027198,2]
[315040678,1708757446126,-163.022415,0.00027198,2]
[315040679,1708757446135,-163.022415,0.00027198,2]
[315040680,1708757446145,-163.022415,0.00027198,2]
[315040681,1708757446155,-163.022415,0.00027198,2]
[315040682,1708757446165,-100000.0,0.00027198,2]
[315040683,1708757446174,-500.0,0.00027198,2]
[315040684,1708757446184,-465.8175,0.00027198,2]
[315040685,1708757446193,-5844.725,0.00027198,2]
[315040686,1708757446203,-39581.3136,0.00027198,2]
[315040687,1708757446213,-1000.0,0.000272,2]
[315040688,1708757446222,-154.39616214,0.00027201,2]
[315040689,1708757446232,-161.05,0.00027219,2]
[315040690,1708757446242,-1791.45,0.00027269,2]
[315040691,1708757446251,-170.12014203,0.00027282,2]
[315040692,1708757446261,-40131.60148639,0.00027292,2]
[315040693,1708757446271,-177.78,0.00027294,2]
[315040694,1708757446280,-1062.2737944,0.00027294,2]
[315040695,1708757446290,-446.1551916,0.00027296,2]
[315040696,1708757446299,-20000.0,0.00027297,2]
[315040697,1708757446310,-171.5228,0.00027297,2]
[315040698,1708757446319,-472.9975,0.00027297,2]
[315040699,1708757446329,-4524.5572,0.00027297,2]
[315040700,1708757446338,-47767.17838473,0.00027297,2]
[315040701,1708757446897,-336.210302,0.00027297,2]
[315040702,1708757456585,890.73022591,0.000224,2]
[315040703,1708757474642,305.02270419,0.000224,2]
[315040706,1708758156248,792.55,0.00021943,2]
[315040707,1708758334752,207.0,0.000219,2]
[315040715,1708758537050,166.12869957,0.00022393,2]
[315040716,1708758544114,209.0,0.000219,2]
[315040719,1708758563134,161.81,0.00026579,120]
[315040720,1708758604385,211.0,0.000219,2]
[315040731,1708758631833,-155.0,0.00023498,2]
[315040732,1708758631843,-204.48263457,0.00023498,2]
[315040733,1708758631852,-422.57841615,0.00023499,2]
[315040734,1708758631861,-299.91026316,0.000235,2]
[315040735,1708758631871,-211.17236746,0.000235,2]
[315040736,1708758631880,-211.17236746,0.000235,2]
[315040737,1708758631889,-213.11689176,0.00023598,2]
[315040738,1708758631898,-250.0,0.00023599,2]
[315040739,1708758631908,-161.81,0.00023626,2]
[315040740,1708758631917,-637.76,0.00023683,2]
[315040741,1708758631925,-190.42395565,0.00023705,2]
[315040742,1708758631935,-166.15,0.00023708,2]
[315040743,1708758631944,-157.73,0.00023742,2]
[315040744,1708758631953,-151.96,0.00023754,2]
[315040745,1708758631962,-2821.18,0.0002378,2]
[315040746,1708758631971,-207.0,0.00023805,4]
[315040747,1708758631980,-2000.0,0.00023807,2]
[315040748,1708758631989,-499.99,0.00023807,2]
[315040749,1708758631998,-353.54,0.00023827,2]
[315040750,1708758632007,-157.73,0.00023837,2]
[315040751,1708758632016,-150.0,0.0002386,2]
[315040752,1708758632026,-23890.0,0.00023861,2]
[315040753,1708758632034,-157.73,0.00023933,2]
[315040754,1708758632046,-157.73,0.00024028,2]
[315040755,1708758632055,-190.94,0.00024073,2]
[315040756,1708758632064,-157.73,0.00024123,2]
[315040757,1708758632073,-165.9,0.00024134,2]
[315040758,1708758632083,-792.55,0.00024207,2]
[315040759,1708758632092,-157.73,0.00024218,2]
[315040760,1708758632101,-157.73,0.00024313,2]
[315040761,1708758632110,-3615.4,0.00024384,2]
[315040762,1708758632121,-157.73,0.00024409,2]
[315040763,1708758632130,-157.73,0.00024504,2]
[315040764,1708758632139,-157.5,0.00024516,2]
[315040765,1708758632149,-1806.96,0.00024545,2]
[315040766,1708758632158,-157.73,0.00024599,2]
[315040767,1708758632167,-646.46,0.00024648,2]
[315040768,1708758632177,-250.0,0.00024658,2]
[315040769,1708758632186,-1500.0,0.00024658,3]
[315040770,1708758632196,-157.73,0.00024694,2]
[315040771,1708758632205,-157.73,0.00024789,2]
[315040772,1708758632217,-1823.27,0.0002484,2]
[315040773,1708758632226,-157.73,0.00024884,2]
[315040774,1708758632236,-157.5,0.00024925,2]
[315040775,1708758632245,-1777.0,0.0002493,2]
[315040776,1708758632254,-157.73,0.0002498,2]
[315040777,1708758632262,-738.98709018,0.0002499,2]
[315040778,1708758632272,-750.0,0.00025,3]
[315040779,1708758632281,-2345.97761527,0.00025,2]
[315040780,1708758632290,-1008.68254687,0.00025,2]
[315040781,1708758632299,-1775.02,0.00025033,2]
[315040782,1708758632308,-800.0,0.00025068,2]
[315040783,1708758632317,-165.86,0.00025077,2]
[315040784,1708758632484,-1820.4,0.00025078,2]
[315040785,1708758632494,-28879.02773106,0.00025088,2]
[315040786,1708758632513,-1906.73436999,0.00025088,2]
[315040787,1708758632523,-155.0,0.00025088,2]
[315040788,1708758632532,-1211.55281136,0.00025088,2]
[315040789,1708758632542,-156.7354839,0.00025088,2]
[315040790,1708758632551,-155.29380375,0.00025088,2]
[315040791,1708758632560,-155.16976757,0.00025089,2]
[315040792,1708758632569,-22841.73856905,0.0002509,2]
[315040793,1708758632580,-911.79363054,0.0002509,2]
[315040794,1708758632591,-81696.41229241,0.0002509,2]
[315040795,1708758632601,-70789.17109725,0.0002509,2]
[315040796,1708758632610,-155.17423719,0.0002509,2]
[315040797,1708758632619,-150.0,0.00025098,2]
[315040798,1708758632629,-3144.1418744,0.000251,2]
[315040799,1708758632639,-157.5,0.00025334,2]
[315040800,1708758632648,-276.12341958,0.0002549,2]
[315040801,1708758632658,-738.08974886,0.000255,2]
[315040802,1708758632667,-738.08974886,0.000255,2]
[315040803,1708758632675,-738.08974886,0.000255,2]
[315040804,1708758632685,-738.08974886,0.000255,2]
[315040805,1708758632695,-738.08974886,0.000255,2]
[315040806,1708758632704,-738.98709015,0.00025681,2]
[315040807,1708758632714,-207.0,0.0002571,7]
[315040808,1708758632723,-157.5,0.00025742,2]
[315040809,1708758632732,-1032.93,0.00025824,2]
[315040810,1708758632742,-1032.93,0.00025824,2]
[315040811,1708758632751,-1032.93,0.00025824,2]
[315040812,1708758632760,-1032.93,0.00025824,2]
[315040813,1708758632769,-1032.93,0.00025824,2]
[315040814,1708758632778,-1032.93,0.00025824,2]
[315040815,1708758632787,-1032.93,0.00025824,2]
[315040816,1708758632797,-1032.93,0.00025824,2]
[315040817,1708758632806,-1032.93,0.00025824,2]
[315040818,1708758632815,-1032.93,0.00025824,2]
[315040819,1708758632824,-1032.93,0.00025824,2]
[315040820,1708758632833,-1032.93,0.00025824,2]
[315040821,1708758632842,-1032.93,0.00025824,2]
[315040822,1708758632851,-1032.93,0.00025824,2]
[315040823,1708758632859,-1032.93,0.00025824,2]
[315040824,1708758632869,-1032.93,0.00025824,2]
[315040825,1708758632878,-1032.93,0.00025824,2]
[315040826,1708758632887,-1032.93,0.00025824,2]
[315040827,1708758632896,-1032.93,0.00025824,2]
[315040828,1708758632906,-1032.93,0.00025824,2]
[315040829,1708758632915,-1032.93,0.00025824,2]
[315040830,1708758632924,-1032.93,0.00025824,2]
[315040831,1708758632933,-1032.93,0.00025824,2]
[315040832,1708758632943,-1033.05565741,0.00025824,2]
[315040833,1708758632952,-162.16450442,0.000259,2]
[315040834,1708758632961,-342.39050248,0.00025999,10]
[315040835,1708758632970,-4205.14511547,0.00026,2]
[315040836,1708758632980,-12427.1338923,0.00026,2]
[315040837,1708758632990,-202.61934455,0.00026,2]
[315040838,1708758632999,-177.78,0.00026,2]
[315040839,1708758633008,-150.0,0.00026079,2]
[315040840,1708758633018,-570.55,0.00026082,2]
[315040841,1708758633027,-151.96,0.0002613,2]
[315040842,1708758633040,-800.0,0.00026137,2]
[315040843,1708758633053,-157.5,0.00026151,2]
[315040844,1708758633062,-162.16450436,0.00026217,3]
[315040845,1708758633070,-210.0,0.00026246,2]
[315040846,1708758633080,-64116.1906033,0.000263,2]
[315040847,1708758633090,-150.0,0.000263,2]
[315040848,1708758633099,-150.0,0.000263,2]
[315040849,1708758633108,-161.51095239,0.000263,10]
[315040850,1708758633118,-150.0,0.00026314,2]
[315040851,1708758633128,-738.98709015,0.00026371,2]
[315040852,1708758633139,-150.0,0.00026394,2]
[315040853,1708758633148,-150.0,0.000264,2]
[315040854,1708758633157,-23076.30183071,0.000264,2]
[315040855,1708758633167,-792.55,0.00026471,2]
[315040856,1708758633176,-162.16450436,0.00026533,3]
[315040857,1708758633185,-177.78,0.00026548,2]
[315040858,1708758633194,-157.5,0.00026559,2]
[315040859,1708758633203,-150.0,0.00026656,2]
[315040860,1708758633212,-150.0,0.00026704,2]
[315040861,1708758633222,-163.022415,0.00026798,2]
[315040862,1708758633231,-163.022415,0.00026798,2]
[315040863,1708758633240,-163.022415,0.00026798,2]
[315040864,1708758633249,-163.022415,0.00026798,2]
[315040865,1708758633258,-163.022415,0.00026798,2]
[315040866,1708758633267,-163.022415,0.00026798,2]
[315040867,1708758633275,-163.022415,0.00026798,2]
[315040868,1708758633284,-353.54,0.00026805,2]
[315040869,1708758633294,-150.0,0.00026834,2]
[315040870,1708758633303,-151.23066085,0.00026848,2]
[315040871,1708758633311,-162.16450436,0.0002685,3]
[315040872,1708758633320,-500.0,0.00026898,2]
[315040873,1708758633330,-39581.3136,0.00026898,2]
[315040874,1708758633339,-100000.0,0.00026898,2]
[315040875,1708758633348,-175.87995895,0.000269,2]